[Event "November 21 Early 2023"]
[Site "https://www.chess.com"]
[Date "2023.11.21"]
[Round "4"]
[White "Goldin, Roman"]
[Black "Levine, David"]
[Result "1-0"]
[Board "219"]
[TimeControl "180+1"]
[WhiteFideId "2803860"]
[BlackFideId "2011611"]
[WhiteElo "2312"]
[BlackElo "2140"]
[WhiteTeam "ISR"]
[BlackTeam "USA"]
[WhiteClock "0:00:54"]
[BlackClock "0:00:00"]

1. e4 {[%clk 0:03:00]}  e5 {[%clk 0:02:59]} 2. Nf3 {[%clk 0:03:00]}  Nc6 {[%clk 0:02:59]} 3. d4 {[%clk 0:02:58]}  exd4 {[%clk 0:02:58]} 4. c3 {[%clk 0:02:58]}  d5 {[%clk 0:02:54]} 5. exd5 {[%clk 0:02:58]}  Qxd5 {[%clk 0:02:51]} 6. Be2 {[%clk 0:02:58]}  Nf6 {[%clk 0:02:48]} 7. cxd4 {[%clk 0:02:59]}  Bb4+ {[%clk 0:02:43]} 8. Nc3 {[%clk 0:02:57]}  Ne4 {[%clk 0:02:27]} 9. Bd2 {[%clk 0:02:48]}  Bxc3 {[%clk 0:02:24]} 10. bxc3 {[%clk 0:02:48]}  Na5 {[%clk 0:02:08]} 11. O-O {[%clk 0:02:44]}  O-O {[%clk 0:02:04]} 12. Ne5 {[%clk 0:02:37]}  Nxd2 {[%clk 0:01:57]} 13. Qxd2 {[%clk 0:02:37]}  c5 {[%clk 0:01:43]} 14. Bf3 {[%clk 0:02:21]}  Qd6 {[%clk 0:01:31]} 15. Rfe1 {[%clk 0:02:12]}  cxd4 {[%clk 0:01:30]} 16. cxd4 {[%clk 0:02:12]}  Nc6 {[%clk 0:01:28]} 17. Nxc6 {[%clk 0:01:51]}  bxc6 {[%clk 0:01:28]} 18. Rac1 {[%clk 0:01:48]}  Bd7 {[%clk 0:01:17]} 19. Re5 {[%clk 0:01:44]}  Rfd8 {[%clk 0:01:07]} 20. Qe3 {[%clk 0:01:25]}  g6 {[%clk 0:00:58]} 21. h4 {[%clk 0:01:24]}  Rab8 {[%clk 0:00:47]} 22. h5 {[%clk 0:01:21]}  Rb4 {[%clk 0:00:46]} 23. d5 {[%clk 0:01:14]}  c5 {[%clk 0:00:17]} 24. h6 {[%clk 0:00:58]}  Rd4 {[%clk 0:00:00]} 25. g3 {[%clk 0:00:54]} 1-0

[Event "November 21 Early 2023"]
[Site "https://www.chess.com"]
[Date "2023.11.21"]
[Round "4"]
[White "Buchenau, Frank"]
[Black "Ghosh, Chanchal Kumer"]
[Result "0-1"]
[Board "221"]
[TimeControl "180+1"]
[WhiteFideId "4604350"]
[BlackFideId "10201858"]
[WhiteElo "2157"]
[BlackElo "2067"]
[WhiteTeam "GER"]
[BlackTeam "BAN"]
[WhiteClock "0:00:00"]
[BlackClock "0:00:04"]

1. e4 {[%clk 0:02:57]}  c5 {[%clk 0:03:00]} 2. Nf3 {[%clk 0:02:56]}  d6 {[%clk 0:03:00]} 3. Bb5+ {[%clk 0:02:55]}  Bd7 {[%clk 0:03:00]} 4. Bxd7+ {[%clk 0:02:54]}  Qxd7 {[%clk 0:03:00]} 5. c4 {[%clk 0:02:54]}  Nc6 {[%clk 0:03:00]} 6. d4 {[%clk 0:02:54]}  cxd4 {[%clk 0:03:00]} 7. Nxd4 {[%clk 0:02:55]}  Nf6 {[%clk 0:02:59]} 8. Nc3 {[%clk 0:02:54]}  e6 {[%clk 0:02:57]} 9. O-O {[%clk 0:02:53]}  Be7 {[%clk 0:02:57]} 10. b3 {[%clk 0:02:52]}  O-O {[%clk 0:02:56]} 11. Bb2 {[%clk 0:02:53]}  a6 {[%clk 0:02:54]} 12. Nxc6 {[%clk 0:02:32]}  Qxc6 {[%clk 0:02:52]} 13. Qd3 {[%clk 0:02:16]}  Ng4 {[%clk 0:02:33]} 14. Qg3 {[%clk 0:02:06]}  Ne5 {[%clk 0:02:25]} 15. f4 {[%clk 0:02:03]}  Ng6 {[%clk 0:02:21]} 16. f5 {[%clk 0:01:56]}  Ne5 {[%clk 0:02:14]} 17. f6 {[%clk 0:01:55]}  Bxf6 {[%clk 0:01:56]} 18. Rxf6 {[%clk 0:01:54]}  b5 {[%clk 0:01:47]} 19. cxb5 {[%clk 0:01:49]}  axb5 {[%clk 0:01:48]} 20. Rf2 {[%clk 0:01:39]}  b4 {[%clk 0:01:46]} 21. Na4 {[%clk 0:01:33]}  Qxe4 {[%clk 0:01:41]} 22. Bxe5 {[%clk 0:01:25]}  dxe5 {[%clk 0:01:41]} 23. Rd1 {[%clk 0:01:06]}  Rad8 {[%clk 0:01:19]} 24. Rfd2 {[%clk 0:00:47]}  Rd4 {[%clk 0:01:03]} 25. Rxd4 {[%clk 0:00:43]}  exd4 {[%clk 0:01:03]} 26. Qd3 {[%clk 0:00:40]}  Qxd3 {[%clk 0:01:01]} 27. Rxd3 {[%clk 0:00:41]}  e5 {[%clk 0:01:01]} 28. g4 {[%clk 0:00:37]}  f5 {[%clk 0:00:56]} 29. gxf5 {[%clk 0:00:34]}  Rxf5 {[%clk 0:00:57]} 30. Nc5 {[%clk 0:00:34]}  Kf7 {[%clk 0:00:28]} 31. Kg2 {[%clk 0:00:33]}  Ke7 {[%clk 0:00:27]} 32. Rf3 {[%clk 0:00:29]}  Rh5 {[%clk 0:00:20]} 33. Rh3 {[%clk 0:00:23]}  Rg5+ {[%clk 0:00:20]} 34. Rg3 {[%clk 0:00:23]}  Rxg3+ {[%clk 0:00:18]} 35. Kxg3 {[%clk 0:00:24]}  Kd6 {[%clk 0:00:18]} 36. Ne4+ {[%clk 0:00:22]}  Kd5 {[%clk 0:00:18]} 37. Kf3 {[%clk 0:00:22]}  h6 {[%clk 0:00:18]} 38. h4 {[%clk 0:00:22]}  g6 {[%clk 0:00:18]} 39. Nf6+ {[%clk 0:00:20]}  Ke6 {[%clk 0:00:18]} 40. Ng4 {[%clk 0:00:19]}  Kd5 {[%clk 0:00:15]} 41. Nf6+ {[%clk 0:00:17]}  Ke6 {[%clk 0:00:14]} 42. Ne4 {[%clk 0:00:16]}  Kd5 {[%clk 0:00:13]} 43. Ng3 {[%clk 0:00:15]}  g5 {[%clk 0:00:09]} 44. h5 {[%clk 0:00:14]}  Ke6 {[%clk 0:00:06]} 45. Ke4 {[%clk 0:00:14]}  Kf6 {[%clk 0:00:05]} 46. Nf5 {[%clk 0:00:13]}  g4 {[%clk 0:00:06]} 47. Nxh6 {[%clk 0:00:13]}  g3 {[%clk 0:00:05]} 48. Nf5 {[%clk 0:00:09]}  g2 {[%clk 0:00:05]} 49. Nh4 {[%clk 0:00:04]}  g1=Q {[%clk 0:00:04]} 50. Nf3 {[%clk 0:00:00]}  Qe3+ {[%clk 0:00:04]} 0-1

[Event "November 21 Early 2023"]
[Site "https://www.chess.com"]
[Date "2023.11.21"]
[Round "4"]
[White "Elbebiber"]
[Black "Dwilewicz, Katarzyna"]
[Result "1/2-1/2"]
[Board "222"]
[TimeControl "180+1"]
[BlackFideId "1148486"]
[WhiteElo "2131"]
[BlackElo "2098"]
[BlackTeam "POL"]
[WhiteClock "0:00:06"]
[BlackClock "0:00:05"]

1. d4 {[%clk 0:03:00]}  c6 {[%clk 0:02:56]} 2. Bf4 {[%clk 0:02:56]}  g6 {[%clk 0:02:51]} 3. e3 {[%clk 0:02:55]}  Bg7 {[%clk 0:02:51]} 4. Nf3 {[%clk 0:02:54]}  d6 {[%clk 0:02:51]} 5. Be2 {[%clk 0:02:51]}  Nf6 {[%clk 0:02:52]} 6. h3 {[%clk 0:02:50]}  O-O {[%clk 0:02:51]} 7. O-O {[%clk 0:02:50]}  Nbd7 {[%clk 0:02:51]} 8. Re1 {[%clk 0:02:41]}  Re8 {[%clk 0:02:51]} 9. Bg3 {[%clk 0:02:36]}  Ne4 {[%clk 0:02:45]} 10. Bh2 {[%clk 0:02:34]}  f5 {[%clk 0:02:40]} 11. Nbd2 {[%clk 0:02:31]}  Ndf6 {[%clk 0:02:40]} 12. Nxe4 {[%clk 0:02:30]}  Nxe4 {[%clk 0:02:39]} 13. Nd2 {[%clk 0:02:29]}  Nxd2 {[%clk 0:02:17]} 14. Qxd2 {[%clk 0:02:29]}  e5 {[%clk 0:02:18]} 15. dxe5 {[%clk 0:02:13]}  dxe5 {[%clk 0:02:17]} 16. Qxd8 {[%clk 0:02:08]}  Rxd8 {[%clk 0:02:16]} 17. Rad1 {[%clk 0:02:08]}  Be6 {[%clk 0:02:15]} 18. a3 {[%clk 0:02:03]}  Kf7 {[%clk 0:02:12]} 19. Rxd8 {[%clk 0:02:01]}  Rxd8 {[%clk 0:02:10]} 20. Rd1 {[%clk 0:02:01]}  Rd5 {[%clk 0:02:01]} 21. Rxd5 {[%clk 0:01:49]}  cxd5 {[%clk 0:02:00]} 22. c3 {[%clk 0:01:46]}  Ke7 {[%clk 0:01:58]} 23. Kf1 {[%clk 0:01:45]}  Kd6 {[%clk 0:01:57]} 24. Ke1 {[%clk 0:01:45]}  Kc5 {[%clk 0:01:54]} 25. Kd2 {[%clk 0:01:45]}  a5 {[%clk 0:01:54]} 26. f3 {[%clk 0:01:43]}  a4 {[%clk 0:01:52]} 27. Bg1 {[%clk 0:01:43]}  Kc6 {[%clk 0:01:50]} 28. Bf2 {[%clk 0:01:40]}  Bh6 {[%clk 0:01:45]} 29. Kc2 {[%clk 0:01:15]}  g5 {[%clk 0:01:34]} 30. g4 {[%clk 0:01:08]}  f4 {[%clk 0:01:22]} 31. exf4 {[%clk 0:01:04]}  gxf4 {[%clk 0:01:21]} 32. Bd3 {[%clk 0:01:02]}  Bg8 {[%clk 0:01:21]} 33. Bf5 {[%clk 0:00:59]}  Bg5 {[%clk 0:01:12]} 34. h4 {[%clk 0:00:56]}  Be7 {[%clk 0:01:11]} 35. h5 {[%clk 0:00:54]}  h6 {[%clk 0:01:09]} 36. Kd2 {[%clk 0:00:52]}  Bf7 {[%clk 0:01:07]} 37. Bc2 {[%clk 0:00:50]}  b5 {[%clk 0:01:00]} 38. Bf5 {[%clk 0:00:50]}  Kd6 {[%clk 0:00:49]} 39. Bb6 {[%clk 0:00:46]}  Bh4 {[%clk 0:00:42]} 40. Ba7 {[%clk 0:00:42]}  Be6 {[%clk 0:00:34]} 41. Bb8+ {[%clk 0:00:38]}  Ke7 {[%clk 0:00:30]} 42. Bxe5 {[%clk 0:00:35]}  Bxf5 {[%clk 0:00:31]} 43. gxf5 {[%clk 0:00:35]}  Bg3 {[%clk 0:00:24]} 44. Kd3 {[%clk 0:00:34]}  Kd7 {[%clk 0:00:19]} 45. Kd4 {[%clk 0:00:29]}  Bf2+ {[%clk 0:00:17]} 46. Kd3 {[%clk 0:00:30]}  Be3 {[%clk 0:00:16]} 47. Bg7 {[%clk 0:00:27]}  Ke7 {[%clk 0:00:11]} 48. f6+ {[%clk 0:00:23]}  Kf7 {[%clk 0:00:11]} 49. Bxh6 {[%clk 0:00:22]}  Kxf6 {[%clk 0:00:11]} 50. Bf8 {[%clk 0:00:21]}  Bc1 {[%clk 0:00:10]} 51. Kc2 {[%clk 0:00:21]}  Be3 {[%clk 0:00:09]} 52. h6 {[%clk 0:00:20]}  Kg6 {[%clk 0:00:09]} 53. Bg7 {[%clk 0:00:20]}  Kh7 {[%clk 0:00:09]} 54. Kd3 {[%clk 0:00:20]}  Kg6 {[%clk 0:00:10]} 55. Kc2 {[%clk 0:00:20]}  Kh7 {[%clk 0:00:10]} 56. b3 {[%clk 0:00:20]}  Bc5 {[%clk 0:00:06]} 57. b4 {[%clk 0:00:18]}  Be3 {[%clk 0:00:05]} 58. Bf8 {[%clk 0:00:16]}  Kg6 {[%clk 0:00:04]} 59. Bg7 {[%clk 0:00:16]}  Kh7 {[%clk 0:00:04]} 60. Bf8 {[%clk 0:00:15]}  d4 {[%clk 0:00:04]} 61. cxd4 {[%clk 0:00:13]}  Bxd4 {[%clk 0:00:05]} 62. Kb1 {[%clk 0:00:09]}  Bf6 {[%clk 0:00:04]} 63. Kc2 {[%clk 0:00:09]}  Bg5 {[%clk 0:00:05]} 64. Kd3 {[%clk 0:00:08]}  Bf6 {[%clk 0:00:05]} 65. Kc2 {[%clk 0:00:06]}  Bd4 {[%clk 0:00:05]} 66. Kd3 {[%clk 0:00:06]}  Be5 {[%clk 0:00:05]} 67. Kc2 {[%clk 0:00:06]}  Bd4 {[%clk 0:00:05]} 1/2-1/2

[Event "November 21 Early 2023"]
[Site "https://www.chess.com"]
[Date "2023.11.21"]
[Round "4"]
[White "Golubenko, Valentina"]
[Black "DonCiao"]
[Result "1-0"]
[Board "223"]
[TimeControl "180+1"]
[WhiteFideId "4501993"]
[WhiteElo "2126"]
[BlackElo "2122"]
[WhiteTeam "CRO"]
[WhiteClock "0:00:18"]
[BlackClock "0:00:03"]

1. d4 {[%clk 0:03:00]}  Nf6 {[%clk 0:02:58]} 2. g3 {[%clk 0:03:00]}  g6 {[%clk 0:02:58]} 3. Bg2 {[%clk 0:03:01]}  Bg7 {[%clk 0:02:58]} 4. c4 {[%clk 0:03:00]}  d5 {[%clk 0:02:58]} 5. Nc3 {[%clk 0:02:59]}  dxc4 {[%clk 0:02:57]} 6. Nf3 {[%clk 0:03:00]}  O-O {[%clk 0:02:57]} 7. O-O {[%clk 0:03:00]}  c6 {[%clk 0:02:56]} 8. Ne5 {[%clk 0:03:00]}  Nd5 {[%clk 0:02:49]} 9. Nxc4 {[%clk 0:02:58]}  Nxc3 {[%clk 0:02:48]} 10. bxc3 {[%clk 0:02:58]}  Be6 {[%clk 0:02:47]} 11. Nd2 {[%clk 0:02:48]}  Qa5 {[%clk 0:02:32]} 12. Qc2 {[%clk 0:02:44]}  Nd7 {[%clk 0:02:25]} 13. e4 {[%clk 0:02:42]}  Nb6 {[%clk 0:02:23]} 14. f4 {[%clk 0:02:33]}  Nc4 {[%clk 0:02:00]} 15. Nb3 {[%clk 0:02:28]}  Qb6 {[%clk 0:01:55]} 16. Nc5 {[%clk 0:02:25]}  Bc8 {[%clk 0:01:31]} 17. Rb1 {[%clk 0:02:22]}  Qc7 {[%clk 0:01:29]} 18. f5 {[%clk 0:02:07]}  b6 {[%clk 0:01:28]} 19. Bf4 {[%clk 0:02:02]}  Qd8 {[%clk 0:01:20]} 20. Nb3 {[%clk 0:01:50]}  Na3 {[%clk 0:01:18]} 21. Qe2 {[%clk 0:01:46]}  Nxb1 {[%clk 0:01:17]} 22. Rxb1 {[%clk 0:01:46]}  a5 {[%clk 0:01:16]} 23. fxg6 {[%clk 0:01:37]}  hxg6 {[%clk 0:01:15]} 24. e5 {[%clk 0:01:35]}  Ba6 {[%clk 0:01:05]} 25. Qg4 {[%clk 0:01:30]}  Rc8 {[%clk 0:01:04]} 26. e6 {[%clk 0:01:23]}  Bd3 {[%clk 0:01:02]} 27. exf7+ {[%clk 0:01:21]}  Rxf7 {[%clk 0:01:01]} 28. Rd1 {[%clk 0:01:20]}  Bf5 {[%clk 0:01:00]} 29. Qe2 {[%clk 0:01:16]}  Qd7 {[%clk 0:00:54]} 30. Rd2 {[%clk 0:01:06]}  a4 {[%clk 0:00:52]} 31. Nc1 {[%clk 0:01:02]}  Qe6 {[%clk 0:00:49]} 32. Qf2 {[%clk 0:00:46]}  Qc4 {[%clk 0:00:43]} 33. Ne2 {[%clk 0:00:35]}  Bg4 {[%clk 0:00:30]} 34. Qe3 {[%clk 0:00:33]}  Bxe2 {[%clk 0:00:28]} 35. Rxe2 {[%clk 0:00:32]}  a3 {[%clk 0:00:24]} 36. Bh3 {[%clk 0:00:32]}  Rd8 {[%clk 0:00:23]} 37. Be6 {[%clk 0:00:31]}  Qb5 {[%clk 0:00:19]} 38. Bxf7+ {[%clk 0:00:30]}  Kxf7 {[%clk 0:00:19]} 39. Qe6+ {[%clk 0:00:30]}  Kf8 {[%clk 0:00:15]} 40. Qxe7+ {[%clk 0:00:30]}  Kg8 {[%clk 0:00:15]} 41. Qxd8+ {[%clk 0:00:30]}  Kh7 {[%clk 0:00:16]} 42. Qe7 {[%clk 0:00:28]}  Qb1+ {[%clk 0:00:14]} 43. Kg2 {[%clk 0:00:28]}  Qd3 {[%clk 0:00:13]} 44. Bh6 {[%clk 0:00:23]}  Qxe2+ {[%clk 0:00:08]} 45. Qxe2 {[%clk 0:00:22]}  Kxh6 {[%clk 0:00:08]} 46. Qe3+ {[%clk 0:00:21]}  Kh7 {[%clk 0:00:08]} 47. Qe6 {[%clk 0:00:21]}  c5 {[%clk 0:00:06]} 48. Qxb6 {[%clk 0:00:20]}  cxd4 {[%clk 0:00:05]} 49. cxd4 {[%clk 0:00:20]}  Kh6 {[%clk 0:00:03]} 50. d5 {[%clk 0:00:20]}  Be5 {[%clk 0:00:03]} 51. d6 {[%clk 0:00:19]}  Bxd6 {[%clk 0:00:03]} 52. Qxd6 {[%clk 0:00:18]}  Kg5 {[%clk 0:00:04]} 53. Qf4+ {[%clk 0:00:18]}  Kh5 {[%clk 0:00:03]} 54. Qh4# {[%clk 0:00:18]} 1-0

[Event "November 21 Early 2023"]
[Site "https://www.chess.com"]
[Date "2023.11.21"]
[Round "4"]
[White "Matthes, Aaron"]
[Black "Fernandez Hernandez, Gerardo"]
[Result "1-0"]
[Board "224"]
[TimeControl "180+1"]
[WhiteFideId "16227310"]
[BlackFideId "2207400"]
[WhiteElo "2340"]
[BlackElo "2119"]
[WhiteTeam "GER"]
[BlackTeam "ESP"]
[WhiteClock "0:00:36"]
[BlackClock "0:00:06"]

1. g3 {[%clk 0:03:00]}  Nf6 {[%clk 0:02:58]} 2. Bg2 {[%clk 0:03:01]}  g6 {[%clk 0:02:59]} 3. b3 {[%clk 0:03:02]}  Bg7 {[%clk 0:02:59]} 4. Bb2 {[%clk 0:03:03]}  O-O {[%clk 0:02:58]} 5. d3 {[%clk 0:03:03]}  d6 {[%clk 0:02:58]} 6. Nd2 {[%clk 0:03:03]}  e5 {[%clk 0:02:57]} 7. e4 {[%clk 0:03:04]}  a5 {[%clk 0:02:54]} 8. Ne2 {[%clk 0:03:04]}  a4 {[%clk 0:02:53]} 9. O-O {[%clk 0:03:04]}  a3 {[%clk 0:02:52]} 10. Bc1 {[%clk 0:03:04]}  b5 {[%clk 0:02:51]} 11. c4 {[%clk 0:03:03]}  c6 {[%clk 0:02:51]} 12. Qc2 {[%clk 0:03:01]}  Na6 {[%clk 0:02:47]} 13. Bxa3 {[%clk 0:02:56]}  b4 {[%clk 0:02:45]} 14. Bb2 {[%clk 0:02:56]}  Bg4 {[%clk 0:02:32]} 15. Rfe1 {[%clk 0:02:51]}  Qd7 {[%clk 0:02:21]} 16. d4 {[%clk 0:02:48]}  Rfe8 {[%clk 0:02:04]} 17. dxe5 {[%clk 0:02:26]}  dxe5 {[%clk 0:02:03]} 18. Nf1 {[%clk 0:02:25]}  Bxe2 {[%clk 0:01:53]} 19. Rxe2 {[%clk 0:02:23]}  Nc5 {[%clk 0:01:54]} 20. a3 {[%clk 0:02:05]}  bxa3 {[%clk 0:01:35]} 21. Bxa3 {[%clk 0:02:06]}  Ne6 {[%clk 0:01:34]} 22. Bb2 {[%clk 0:02:00]}  Nd4 {[%clk 0:01:32]} 23. Bxd4 {[%clk 0:01:55]}  Qxd4 {[%clk 0:01:30]} 24. Rd1 {[%clk 0:01:47]}  Qc5 {[%clk 0:01:25]} 25. Qc3 {[%clk 0:01:45]}  Ra3 {[%clk 0:01:17]} 26. Red2 {[%clk 0:01:41]}  Qb6 {[%clk 0:01:03]} 27. Rb1 {[%clk 0:01:26]}  Bf8 {[%clk 0:00:58]} 28. Qe3 {[%clk 0:01:11]}  Bc5 {[%clk 0:00:53]} 29. Qf3 {[%clk 0:01:10]}  Kg7 {[%clk 0:00:46]} 30. Rd3 {[%clk 0:01:06]}  Bd4 {[%clk 0:00:31]} 31. b4 {[%clk 0:01:00]}  Ra2 {[%clk 0:00:30]} 32. Ne3 {[%clk 0:00:56]}  Rea8 {[%clk 0:00:20]} 33. c5 {[%clk 0:00:50]}  Qb5 {[%clk 0:00:19]} 34. Bf1 {[%clk 0:00:50]}  Ra1 {[%clk 0:00:15]} 35. Rdd1 {[%clk 0:00:50]}  Rxb1 {[%clk 0:00:14]} 36. Bxb5 {[%clk 0:00:49]}  Rxd1+ {[%clk 0:00:15]} 37. Nxd1 {[%clk 0:00:49]}  cxb5 {[%clk 0:00:15]} 38. Kg2 {[%clk 0:00:49]}  Ra2 {[%clk 0:00:14]} 39. Ne3 {[%clk 0:00:49]}  Ra3 {[%clk 0:00:14]} 40. Qe2 {[%clk 0:00:45]}  Rb3 {[%clk 0:00:12]} 41. Qxb5 {[%clk 0:00:44]}  Rb2 {[%clk 0:00:13]} 42. Kf3 {[%clk 0:00:42]}  g5 {[%clk 0:00:12]} 43. Nf5+ {[%clk 0:00:40]}  Kg6 {[%clk 0:00:12]} 44. Nxd4 {[%clk 0:00:41]}  exd4 {[%clk 0:00:12]} 45. c6 {[%clk 0:00:41]}  g4+ {[%clk 0:00:09]} 46. Kg2 {[%clk 0:00:40]}  Nxe4 {[%clk 0:00:10]} 47. Qd3 {[%clk 0:00:40]}  Rxf2+ {[%clk 0:00:07]} 48. Kg1 {[%clk 0:00:40]}  f5 {[%clk 0:00:05]} 49. Qxe4 {[%clk 0:00:41]}  fxe4 {[%clk 0:00:05]} 50. Kxf2 {[%clk 0:00:41]}  e3+ {[%clk 0:00:05]} 51. Ke2 {[%clk 0:00:41]}  Kf5 {[%clk 0:00:06]} 52. c7 {[%clk 0:00:41]}  Ke4 {[%clk 0:00:06]} 53. c8=Q {[%clk 0:00:42]}  d3+ {[%clk 0:00:07]} 54. Ke1 {[%clk 0:00:42]}  Kf3 {[%clk 0:00:06]} 55. Qf5+ {[%clk 0:00:41]}  Kg2 {[%clk 0:00:07]} 56. Qxd3 {[%clk 0:00:40]}  Kxh2 {[%clk 0:00:06]} 57. Qxe3 {[%clk 0:00:40]}  h5 {[%clk 0:00:06]} 58. b5 {[%clk 0:00:34]}  h4 {[%clk 0:00:07]} 59. gxh4 {[%clk 0:00:34]}  g3 {[%clk 0:00:08]} 60. Qxg3+ {[%clk 0:00:35]}  Kxg3 {[%clk 0:00:06]} 61. h5 {[%clk 0:00:36]} 1-0

[Event "November 21 Early 2023"]
[Site "https://www.chess.com"]
[Date "2023.11.21"]
[Round "4"]
[White "Nikulina, Alena"]
[Black "rikchessmx"]
[Result "0-1"]
[Board "227"]
[TimeControl "180+1"]
[WhiteFideId "4172051"]
[WhiteElo "1627"]
[BlackElo "2316"]
[WhiteTeam "RUS"]
[WhiteClock "0:02:01"]
[BlackClock "0:02:41"]

1. e4 {[%clk 0:02:56]}  c5 {[%clk 0:03:00]} 2. Nf3 {[%clk 0:02:56]}  e6 {[%clk 0:03:00]} 3. d4 {[%clk 0:02:55]}  cxd4 {[%clk 0:03:01]} 4. Nxd4 {[%clk 0:02:45]}  a6 {[%clk 0:03:00]} 5. Bd3 {[%clk 0:02:36]}  Qc7 {[%clk 0:02:55]} 6. O-O {[%clk 0:02:31]}  Nf6 {[%clk 0:02:52]} 7. c4 {[%clk 0:02:21]}  h5 {[%clk 0:02:44]} 8. Nc3 {[%clk 0:02:17]}  Bc5 {[%clk 0:02:44]} 9. Nb3 {[%clk 0:02:13]}  Ng4 {[%clk 0:02:42]} 10. h3 {[%clk 0:02:01]}  Qh2# {[%clk 0:02:41]} 0-1

[Event "November 21 Early 2023"]
[Site "https://www.chess.com"]
[Date "2023.11.21"]
[Round "4"]
[White "Vlasova, Nataliya"]
[Black "AKINSEYE, Akinleye"]
[Result "1-0"]
[Board "229"]
[TimeControl "180+1"]
[WhiteFideId "4122682"]
[BlackFideId "8504458"]
[WhiteElo "1939"]
[BlackElo "1906"]
[WhiteTeam "RUS"]
[BlackTeam "NGR"]
[WhiteClock "0:00:08"]
[BlackClock "0:00:16"]

1. e4 {[%clk 0:03:00]}  d5 {[%clk 0:02:58]} 2. exd5 {[%clk 0:03:00]}  Qxd5 {[%clk 0:02:58]} 3. Nf3 {[%clk 0:03:00]}  Qd6 {[%clk 0:02:58]} 4. d4 {[%clk 0:02:58]}  Nf6 {[%clk 0:02:58]} 5. g3 {[%clk 0:02:54]}  g6 {[%clk 0:02:58]} 6. Bg2 {[%clk 0:02:54]}  Bg7 {[%clk 0:02:58]} 7. O-O {[%clk 0:02:53]}  O-O {[%clk 0:02:57]} 8. Bf4 {[%clk 0:02:53]}  Qd8 {[%clk 0:02:58]} 9. c4 {[%clk 0:02:52]}  c6 {[%clk 0:02:57]} 10. Nc3 {[%clk 0:02:52]}  Bg4 {[%clk 0:02:51]} 11. Qd2 {[%clk 0:02:49]}  Nbd7 {[%clk 0:02:45]} 12. h3 {[%clk 0:02:40]}  Bxf3 {[%clk 0:02:44]} 13. Bxf3 {[%clk 0:02:41]}  e6 {[%clk 0:02:44]} 14. Rad1 {[%clk 0:02:38]}  Qb6 {[%clk 0:02:43]} 15. Be3 {[%clk 0:02:32]}  Qd8 {[%clk 0:02:41]} 16. Rfe1 {[%clk 0:02:30]}  Re8 {[%clk 0:02:38]} 17. Bf4 {[%clk 0:02:29]}  Rc8 {[%clk 0:02:31]} 18. Kg2 {[%clk 0:02:26]}  Nb6 {[%clk 0:02:28]} 19. b3 {[%clk 0:02:24]}  Qe7 {[%clk 0:02:26]} 20. d5 {[%clk 0:02:21]}  cxd5 {[%clk 0:02:26]} 21. c5 {[%clk 0:02:20]}  Qxc5 {[%clk 0:02:20]} 22. Be5 {[%clk 0:02:18]}  Nfd7 {[%clk 0:02:17]} 23. Bxg7 {[%clk 0:02:14]}  Kxg7 {[%clk 0:02:18]} 24. Ne2 {[%clk 0:02:05]}  Ne5 {[%clk 0:02:15]} 25. Qb2 {[%clk 0:02:02]}  Nd7 {[%clk 0:02:10]} 26. Nf4 {[%clk 0:02:00]}  Qc3 {[%clk 0:02:05]} 27. Qxc3 {[%clk 0:01:54]}  Rxc3 {[%clk 0:02:04]} 28. Be2 {[%clk 0:01:49]}  Rec8 {[%clk 0:01:59]} 29. Bb5 {[%clk 0:01:43]}  a6 {[%clk 0:01:58]} 30. Bxd7 {[%clk 0:01:39]}  Nxd7 {[%clk 0:01:56]} 31. Rd2 {[%clk 0:01:37]}  Rc2 {[%clk 0:01:56]} 32. Ree2 {[%clk 0:01:36]}  Rxd2 {[%clk 0:01:55]} 33. Rxd2 {[%clk 0:01:37]}  Rc3 {[%clk 0:01:55]} 34. Ne2 {[%clk 0:01:33]}  Rc5 {[%clk 0:01:50]} 35. a4 {[%clk 0:01:27]}  Nf6 {[%clk 0:01:48]} 36. f3 {[%clk 0:01:23]}  Nd7 {[%clk 0:01:46]} 37. b4 {[%clk 0:01:13]}  Rc4 {[%clk 0:01:45]} 38. Rb2 {[%clk 0:01:13]}  Ne5 {[%clk 0:01:43]} 39. Rb3 {[%clk 0:00:48]}  Nc6 {[%clk 0:01:40]} 40. b5 {[%clk 0:00:46]}  Na5 {[%clk 0:01:25]} 41. Ra3 {[%clk 0:00:44]}  d4 {[%clk 0:01:17]} 42. Kf2 {[%clk 0:00:42]}  d3 {[%clk 0:01:08]} 43. Rxd3 {[%clk 0:00:39]}  Rxa4 {[%clk 0:01:08]} 44. bxa6 {[%clk 0:00:31]}  bxa6 {[%clk 0:01:09]} 45. Rd7 {[%clk 0:00:31]}  Kf6 {[%clk 0:01:06]} 46. Ra7 {[%clk 0:00:29]}  Nc4 {[%clk 0:01:06]} 47. f4 {[%clk 0:00:25]}  Ra3 {[%clk 0:01:04]} 48. Nd4 {[%clk 0:00:17]}  a5 {[%clk 0:01:03]} 49. Nc6 {[%clk 0:00:17]}  e5 {[%clk 0:00:53]} 50. Nd8 {[%clk 0:00:15]}  exf4 {[%clk 0:00:53]} 51. Rxf7+ {[%clk 0:00:11]}  Kg5 {[%clk 0:00:45]} 52. gxf4+ {[%clk 0:00:12]}  Kh6 {[%clk 0:00:36]} 53. Ne6 {[%clk 0:00:11]}  g5 {[%clk 0:00:20]} 54. Nxg5 {[%clk 0:00:09]}  Kg6 {[%clk 0:00:20]} 55. Rxh7 {[%clk 0:00:09]}  a4 {[%clk 0:00:19]} 56. Ra7 {[%clk 0:00:08]}  Ra2+ {[%clk 0:00:18]} 57. Kg3 {[%clk 0:00:09]}  a3 {[%clk 0:00:19]} 58. Kg4 {[%clk 0:00:09]}  Ra1 {[%clk 0:00:18]} 59. f5+ {[%clk 0:00:09]}  Kf6 {[%clk 0:00:18]} 60. Ra6+ {[%clk 0:00:08]}  Ke5 {[%clk 0:00:17]} 61. Nf3+ {[%clk 0:00:08]}  Ke4 {[%clk 0:00:17]} 62. f6 {[%clk 0:00:07]}  a2 {[%clk 0:00:17]} 63. f7 {[%clk 0:00:07]}  Ne5+ {[%clk 0:00:14]} 64. Nxe5 {[%clk 0:00:07]}  Kxe5 {[%clk 0:00:14]} 65. f8=Q {[%clk 0:00:06]}  Rg1+ {[%clk 0:00:15]} 66. Kh4 {[%clk 0:00:06]}  a1=Q {[%clk 0:00:14]} 67. Rxa1 {[%clk 0:00:06]}  Rxa1 {[%clk 0:00:15]} 68. Qh8+ {[%clk 0:00:06]}  Ke4 {[%clk 0:00:14]} 69. Qxa1 {[%clk 0:00:07]}  Kd3 {[%clk 0:00:14]} 70. Qc1 {[%clk 0:00:07]}  Ke2 {[%clk 0:00:15]} 71. Qc2+ {[%clk 0:00:07]}  Ke1 {[%clk 0:00:15]} 72. Qd3 {[%clk 0:00:07]}  Kf2 {[%clk 0:00:15]} 73. Kg4 {[%clk 0:00:08]}  Ke1 {[%clk 0:00:16]} 74. Qc2 {[%clk 0:00:07]}  Kf1 {[%clk 0:00:15]} 75. Kf3 {[%clk 0:00:08]}  Ke1 {[%clk 0:00:16]} 76. Qe2# {[%clk 0:00:08]} 1-0

[Event "November 21 Early 2023"]
[Site "https://www.chess.com"]
[Date "2023.11.21"]
[Round "4"]
[White "Martin, Lewis"]
[Black "Zepeda Berlanga, Jan Enrique"]
[Result "0-1"]
[Board "232"]
[TimeControl "180+1"]
[WhiteFideId "410551"]
[BlackFideId "5132355"]
[WhiteElo "2145"]
[BlackElo "1680"]
[WhiteTeam "ENG"]
[BlackTeam "MEX"]
[WhiteClock "0:02:13"]
[BlackClock "0:01:33"]

1. c4 {[%clk 0:03:00]}  Nf6 {[%clk 0:02:58]} 2. g3 {[%clk 0:02:59]}  g6 {[%clk 0:02:57]} 3. Bg2 {[%clk 0:02:59]}  Bg7 {[%clk 0:02:58]} 4. Nf3 {[%clk 0:02:59]}  O-O {[%clk 0:02:58]} 5. O-O {[%clk 0:02:59]}  d5 {[%clk 0:02:58]} 6. cxd5 {[%clk 0:02:51]}  Nxd5 {[%clk 0:02:59]} 7. Nc3 {[%clk 0:02:51]}  c5 {[%clk 0:02:50]} 8. a3 {[%clk 0:02:41]}  Nc6 {[%clk 0:02:47]} 9. Qc2 {[%clk 0:02:35]}  Be6 {[%clk 0:02:17]} 10. e4 {[%clk 0:02:34]}  Nb6 {[%clk 0:02:03]} 11. d3 {[%clk 0:02:32]}  Rc8 {[%clk 0:01:53]} 12. Be3 {[%clk 0:02:31]}  Nd4 {[%clk 0:01:48]} 13. Qd1 {[%clk 0:02:30]}  Bb3 {[%clk 0:01:45]} 14. Qc1 {[%clk 0:02:27]}  Na4 {[%clk 0:01:34]} 15. Nxa4 {[%clk 0:02:17]}  Ne2+ {[%clk 0:01:34]} 16. Kh1 {[%clk 0:02:13]}  Nxc1 {[%clk 0:01:33]} 0-1